[Event "*** Titled Tuesday Blitz AM"]
[Site "Chess.com"]
[Date "2020.01.07"]
[Round "9"]
[White "Indianlad"]
[Black "SavelijTartakover"]
[Result "1-0"]
[WhiteElo "2926"]
[BlackElo "2714"]
[TimeControl "180+2"]
[EndTime "11:04:33 PST"]
[Termination "Indianlad won by resignation"]

1. c4 {[%clk 0:03:01.9]} 1... Nf6 {[%clk 0:02:58.6]} 2. g3 {[%clk 0:03:02.7]}
2... g6 {[%clk 0:02:57.4]} 3. Bg2 {[%clk 0:03:03.9]} 3... Bg7 {[%clk 0:02:59]}
4. Nc3 {[%clk 0:03:05.3]} 4... O-O {[%clk 0:03:00.3]} 5. Nf3 {[%clk 0:03:06.6]}
5... d6 {[%clk 0:02:53.8]} 6. O-O {[%clk 0:03:06.3]} 6... Nc6 {[%clk 0:02:54.5]}
7. d4 {[%clk 0:03:03.2]} 7... e5 {[%clk 0:02:55]} 8. dxe5 {[%clk 0:03:01.5]}
8... Nxe5 {[%clk 0:02:54.4]} 9. b3 {[%clk 0:03:02.4]} 9... Nxf3+ {[%clk
0:02:52]} 10. Bxf3 {[%clk 0:03:03.5]} 10... Re8 {[%clk 0:02:48.8]} 11. Bb2
{[%clk 0:03:04]} 11... Ng4 {[%clk 0:02:37.7]} 12. Qd2 {[%clk 0:03:01.9]} 12...
Rb8 {[%clk 0:02:33.3]} 13. Rad1 {[%clk 0:02:55.7]} 13... Bf5 {[%clk 0:02:27.5]}
14. Nd5 {[%clk 0:02:56.8]} 14... c6 {[%clk 0:02:15.1]} 15. Bxg7 {[%clk
0:02:56.9]} 15... Kxg7 {[%clk 0:02:13.9]} 16. Bxg4 {[%clk 0:02:57.7]} 16... Bxg4
{[%clk 0:01:59.2]} 17. Qd4+ {[%clk 0:02:58.7]} 17... f6 {[%clk 0:01:53.9]} 18.
Qxg4 {[%clk 0:02:58.3]} 18... cxd5 {[%clk 0:01:54.2]} 19. Rxd5 {[%clk
0:03:00.2]} 19... Re5 {[%clk 0:01:44.2]} 20. Rfd1 {[%clk 0:02:58.6]} 20... Rxd5
{[%clk 0:01:42.5]} 21. Rxd5 {[%clk 0:03:00.5]} 21... Qe7 {[%clk 0:01:43.4]} 22.
e3 {[%clk 0:03:01.9]} 22... b6 {[%clk 0:01:37.4]} 23. Qd4 {[%clk 0:03:03.3]}
23... Rd8 {[%clk 0:01:36.7]} 24. b4 {[%clk 0:03:04.5]} 24... h5 {[%clk
0:01:30.4]} 25. h4 {[%clk 0:03:02.9]} 25... Qe6 {[%clk 0:01:27.5]} 26. a3 {[%clk
0:03:02]} 26... Qe7 {[%clk 0:01:18.1]} 27. Qd3 {[%clk 0:03:03.2]} 27... Qc7
{[%clk 0:00:56.4]} 28. c5 {[%clk 0:03:01.7]} 28... bxc5 {[%clk 0:00:57.3]} 29.
bxc5 {[%clk 0:03:03.1]} 29... Rb8 {[%clk 0:00:53.5]} 30. Rxd6 {[%clk 0:02:33.7]}
30... Qxc5 {[%clk 0:00:49.8]} 31. Rd7+ {[%clk 0:02:35.1]} 31... Kh6 {[%clk
0:00:49.9]} 32. Qe4 {[%clk 0:02:36.2]} 32... Qf5 {[%clk 0:00:41.2]} 33. Qxf5
{[%clk 0:02:36.6]} 33... gxf5 {[%clk 0:00:41.8]} 34. Rxa7 {[%clk 0:02:38.2]}
34... Rb2 {[%clk 0:00:37.4]} 35. Ra4 {[%clk 0:02:36.7]} 35... Ra2 {[%clk
0:00:36.8]} 36. Rf4 {[%clk 0:02:38.3]} 36... Rxa3 {[%clk 0:00:35.4]} 37. Rxf5
{[%clk 0:02:39.1]} 37... Kg6 {[%clk 0:00:36.9]} 38. Rf4 {[%clk 0:02:39.3]} 38...
Ra2 {[%clk 0:00:38.1]} 39. Kg2 {[%clk 0:02:40.8]} 39... Rb2 {[%clk 0:00:39.1]}
40. Rd4 {[%clk 0:02:42.1]} 40... Ra2 {[%clk 0:00:39.8]} 41. e4 {[%clk
0:02:43.2]} 41... Rb2 {[%clk 0:00:39.4]} 42. Kf3 {[%clk 0:02:43.8]} 42... Ra2
{[%clk 0:00:38.3]} 43. Ke3 {[%clk 0:02:44.2]} 43... Rb2 {[%clk 0:00:38.5]} 44.
f3 {[%clk 0:02:45.8]} 44... Rb5 {[%clk 0:00:35.5]} 45. Kf4 {[%clk 0:02:45.9]}
45... Ra5 {[%clk 0:00:36.5]} 46. Rd5 {[%clk 0:02:46.4]} 46... Ra4 {[%clk
0:00:37.4]} 47. g4 {[%clk 0:02:47.4]} 47... hxg4 {[%clk 0:00:38.1]} 48. Kxg4
{[%clk 0:02:48.8]} 48... Ra3 {[%clk 0:00:32.4]} 49. h5+ {[%clk 0:02:50.3]} 49...
Kh6 {[%clk 0:00:32.4]} 50. f4 {[%clk 0:02:51.7]} 50... Ra4 {[%clk 0:00:30]} 51.
Kf5 {[%clk 0:02:52.3]} 51... Rb4 {[%clk 0:00:30.7]} 52. e5 {[%clk 0:02:44.6]}
52... fxe5 {[%clk 0:00:30]} 53. fxe5 {[%clk 0:02:46.5]} 53... Kg7 {[%clk
0:00:29.5]} 54. Rd7+ {[%clk 0:02:44]} 54... Kf8 {[%clk 0:00:30]} 55. h6 {[%clk
0:02:45.2]} 55... Kg8 {[%clk 0:00:24.1]} 56. e6 {[%clk 0:02:46.4]} 56... Rb1
{[%clk 0:00:22]} 57. h7+ {[%clk 0:02:42.6]} 57... Kh8 {[%clk 0:00:22]} 58. e7
{[%clk 0:02:44.1]} 58... Re1 {[%clk 0:00:19]} 59. Rd8+ {[%clk 0:02:42.8]} 1-0

[Event "*** Titled Tuesday Blitz AM"]
[Site "Chess.com"]
[Date "2020.01.07"]
[Round "9"]
[White "ChessyInstinct"]
[Black "Er_is_geen_hoop_meer"]
[Result "1-0"]
[WhiteElo "2442"]
[BlackElo "2336"]
[TimeControl "180+2"]
[EndTime "11:04:35 PST"]
[Termination "ChessyInstinct won by resignation"]

1. d4 {[%clk 0:03:01.9]} 1... f5 {[%clk 0:02:58.7]} 2. Nc3 {[%clk 0:02:59.6]}
2... Nf6 {[%clk 0:02:59.5]} 3. Bg5 {[%clk 0:02:52.8]} 3... d5 {[%clk 0:03:00.7]}
4. Bxf6 {[%clk 0:02:52.3]} 4... exf6 {[%clk 0:03:02.6]} 5. e3 {[%clk 0:02:53.4]}
5... Be6 {[%clk 0:03:03.4]} 6. Bd3 {[%clk 0:02:54.8]} 6... c6 {[%clk 0:03:03.2]}
7. Qf3 {[%clk 0:02:56.1]} 7... g6 {[%clk 0:03:03.8]} 8. Nge2 {[%clk 0:02:56.1]}
8... Na6 {[%clk 0:03:03.8]} 9. a3 {[%clk 0:02:56.2]} 9... Nc7 {[%clk 0:03:04.5]}
10. h4 {[%clk 0:02:56.5]} 10... h5 {[%clk 0:03:05.5]} 11. Nf4 {[%clk 0:02:55.8]}
11... Kf7 {[%clk 0:03:06.6]} 12. O-O-O {[%clk 0:02:49.4]} 12... Bd6 {[%clk
0:03:07.8]} 13. Rdg1 {[%clk 0:02:44.4]} 13... b5 {[%clk 0:03:07]} 14. Nxg6
{[%clk 0:02:34.2]} 14... Kxg6 {[%clk 0:03:04.7]} 15. g4 {[%clk 0:02:35.1]} 15...
hxg4 {[%clk 0:03:05.4]} 16. Qxg4+ {[%clk 0:02:34.5]} 16... Kf7 {[%clk
0:03:06.8]} 17. Qg7+ {[%clk 0:02:35.2]} 17... Ke8 {[%clk 0:03:08.7]} 18. Qxh8+
{[%clk 0:02:35.2]} 18... Kd7 {[%clk 0:03:10.6]} 19. Rg7+ {[%clk 0:02:25]} 19...
Be7 {[%clk 0:03:12.5]} 20. Qxd8+ {[%clk 0:02:21]} 20... Rxd8 {[%clk 0:03:10.1]}
21. Ne2 {[%clk 0:02:22.1]} 21... Rh8 {[%clk 0:03:12]} 22. Nf4 {[%clk 0:02:22]}
22... Ne8 {[%clk 0:03:12]} 23. Rxe7+ {[%clk 0:02:21.6]} 23... Kxe7 {[%clk
0:03:12.1]} 24. Ng6+ {[%clk 0:02:23.1]} 24... Kf7 {[%clk 0:03:13.3]} 25. Nxh8+
{[%clk 0:02:24.6]} 25... Kg7 {[%clk 0:03:15.2]} 26. Kd2 {[%clk 0:02:11.6]} 26...
Kxh8 {[%clk 0:03:17.1]} 27. c3 {[%clk 0:02:09.9]} 27... Nd6 {[%clk 0:03:14.6]}
28. a4 {[%clk 0:02:07.9]} 28... a5 {[%clk 0:03:10.7]} 29. axb5 {[%clk
0:02:08.7]} 29... cxb5 {[%clk 0:03:12.6]} 30. b3 {[%clk 0:02:06.8]} 30... Bd7
{[%clk 0:03:05.9]} 31. Ra1 {[%clk 0:02:05.6]} 31... Nb7 {[%clk 0:03:07.3]} 32.
c4 {[%clk 0:02:04.2]} 32... dxc4 {[%clk 0:03:07]} 33. bxc4 {[%clk 0:02:04]}
33... b4 {[%clk 0:03:08.5]} 34. c5 {[%clk 0:02:01.2]} 34... a4 {[%clk
0:03:07.3]} 35. Bc4 {[%clk 0:01:57.2]} 35... Na5 {[%clk 0:03:06.8]} 36. Kd3
{[%clk 0:01:57.3]} 36... Nb7 {[%clk 0:02:52.5]} 37. Ba6 {[%clk 0:01:45.8]} 37...
Na5 {[%clk 0:02:41.6]} 38. Bc4 {[%clk 0:01:17.9]} 38... Nb7 {[%clk 0:02:35]} 39.
f3 {[%clk 0:01:16.7]} 39... b3 {[%clk 0:02:24.7]} 40. Kc3 {[%clk 0:00:52.8]}
40... Na5 {[%clk 0:02:15.3]} 41. d5 {[%clk 0:00:33.4]} 41... b2 {[%clk 0:02:14]}
42. Rb1 {[%clk 0:00:20.8]} 42... a3 {[%clk 0:02:15.3]} 43. Ba2 {[%clk
0:00:20.9]} 43... Bb5 {[%clk 0:02:09.5]} 44. Kb4 {[%clk 0:00:18]} 44... Bc4
{[%clk 0:01:53.2]} 45. Kxa3 {[%clk 0:00:14.1]} 45... Be2 {[%clk 0:01:54.1]} 46.
Rxb2 {[%clk 0:00:11.4]} 46... Bxf3 {[%clk 0:01:56]} 47. Rb8+ {[%clk 0:00:09.2]}
47... Kg7 {[%clk 0:01:57.3]} 48. Kb4 {[%clk 0:00:10.7]} 48... Bxd5 {[%clk
0:01:52.8]} 49. Bxd5 {[%clk 0:00:10.5]} 49... f4 {[%clk 0:01:54.2]} 50. exf4
{[%clk 0:00:10.7]} 1-0

[Event "*** Titled Tuesday Blitz AM"]
[Site "Chess.com"]
[Date "2020.01.07"]
[Round "9"]
[White "wannabe2700"]
[Black "RubensCezila"]
[Result "1-0"]
[WhiteElo "2774"]
[BlackElo "2587"]
[TimeControl "180+2"]
[EndTime "11:04:37 PST"]
[Termination "wannabe2700 won on time"]

1. e4 {[%clk 0:03:01.9]} 1... c5 {[%clk 0:03:00.3]} 2. Nf3 {[%clk 0:03:03]} 2...
d6 {[%clk 0:03:01.6]} 3. d4 {[%clk 0:03:04.6]} 3... cxd4 {[%clk 0:03:03]} 4.
Nxd4 {[%clk 0:03:06.5]} 4... Nf6 {[%clk 0:03:02.8]} 5. Nc3 {[%clk 0:03:07.9]}
5... a6 {[%clk 0:03:04]} 6. Be3 {[%clk 0:03:09]} 6... e5 {[%clk 0:03:04.3]} 7.
Nb3 {[%clk 0:03:10.3]} 7... Be7 {[%clk 0:03:05.2]} 8. f3 {[%clk 0:03:11.5]} 8...
Be6 {[%clk 0:03:06.1]} 9. Qd2 {[%clk 0:03:12.5]} 9... O-O {[%clk 0:03:06.8]} 10.
O-O-O {[%clk 0:03:13.9]} 10... a5 {[%clk 0:03:07.6]} 11. Bb5 {[%clk 0:03:06.2]}
11... Nc6 {[%clk 0:03:07.8]} 12. a4 {[%clk 0:03:05.7]} 12... Nb4 {[%clk
0:02:58]} 13. Qf2 {[%clk 0:03:02.7]} 13... d5 {[%clk 0:02:49.8]} 14. exd5 {[%clk
0:02:35.3]} 14... Nfxd5 {[%clk 0:02:35.7]} 15. Nxd5 {[%clk 0:02:30.7]} 15...
Bxd5 {[%clk 0:02:31.4]} 16. Bc5 {[%clk 0:02:21.7]} 16... Bxc5 {[%clk 0:01:56.7]}
17. Nxc5 {[%clk 0:02:16.3]} 17... Rc8 {[%clk 0:01:49.1]} 18. c3 {[%clk 0:02:16]}
18... b6 {[%clk 0:01:20.9]} 19. cxb4 {[%clk 0:02:16.1]} 19... axb4 {[%clk
0:01:21.5]} 20. Kb1 {[%clk 0:02:05.4]} 20... Rxc5 {[%clk 0:01:22.3]} 21. Qd2
{[%clk 0:02:02.4]} 21... b3 {[%clk 0:01:11.4]} 22. Bd3 {[%clk 0:01:58.3]} 22...
Qa8 {[%clk 0:01:04.5]} 23. Qb4 {[%clk 0:01:58.9]} 23... Rfc8 {[%clk 0:00:50.3]}
24. Rhe1 {[%clk 0:01:58.1]} 24... Qc6 {[%clk 0:00:35]} 25. Be4 {[%clk
0:01:45.5]} 25... Bxe4+ {[%clk 0:00:27.4]} 26. Qxe4 {[%clk 0:01:38]} 26... Qc7
{[%clk 0:00:23.5]} 27. f4 {[%clk 0:01:29.4]} 27... Rc2 {[%clk 0:00:21.6]} 28.
Qxe5 {[%clk 0:01:29]} 28... Qc6 {[%clk 0:00:18.9]} 29. Qe4 {[%clk 0:01:23.1]}
29... Qxe4 {[%clk 0:00:09.1]} 30. Rxe4 {[%clk 0:01:25]} 30... Rxg2 {[%clk
0:00:09.8]} 31. Rc4 {[%clk 0:01:19]} 31... Re8 {[%clk 0:00:08.4]} 32. Rb4 {[%clk
0:01:15.3]} 32... h5 {[%clk 0:00:06.4]} 33. Rxb3 {[%clk 0:01:10.3]} 33... Rxh2
{[%clk 0:00:05.6]} 34. Rxb6 {[%clk 0:01:11]} 34... h4 {[%clk 0:00:06.3]} 35. a5
{[%clk 0:01:07.8]} 1-0

[Event "*** Titled Tuesday Blitz AM"]
[Site "Chess.com"]
[Date "2020.01.07"]
[Round "9"]
[White "ShahMatKanal"]
[Black "Leonid_Starozhilov"]
[Result "1-0"]
[WhiteElo "2551"]
[BlackElo "2687"]
[TimeControl "180+2"]
[EndTime "11:04:40 PST"]
[Termination "ShahMatKanal won by resignation"]

1. d4 {[%clk 0:03:00.4]} 1... Nf6 {[%clk 0:03:00.9]} 2. Bf4 {[%clk 0:02:58.3]}
2... d5 {[%clk 0:02:58]} 3. e3 {[%clk 0:02:59.4]} 3... c6 {[%clk 0:02:58.9]} 4.
c3 {[%clk 0:03:00.4]} 4... Bg4 {[%clk 0:02:59.7]} 5. Be2 {[%clk 0:03:00.8]} 5...
h5 {[%clk 0:02:46.7]} 6. Nd2 {[%clk 0:02:57.4]} 6... Nbd7 {[%clk 0:02:43.8]} 7.
h3 {[%clk 0:02:42.3]} 7... Bxe2 {[%clk 0:02:38.2]} 8. Qxe2 {[%clk 0:02:43.6]}
8... Qb6 {[%clk 0:02:36.2]} 9. Nb3 {[%clk 0:02:38.7]} 9... g6 {[%clk 0:02:12.8]}
10. Nf3 {[%clk 0:02:38]} 10... Bg7 {[%clk 0:02:14.2]} 11. Ne5 {[%clk 0:02:38.5]}
11... a5 {[%clk 0:02:13]} 12. Nxd7 {[%clk 0:02:39.4]} 12... Nxd7 {[%clk
0:02:14.1]} 13. O-O {[%clk 0:02:40.2]} 13... O-O {[%clk 0:02:09.9]} 14. Rab1
{[%clk 0:02:31.2]} 14... e5 {[%clk 0:02:05.8]} 15. Bg5 {[%clk 0:02:23.5]} 15...
Rfe8 {[%clk 0:02:05.2]} 16. Qc2 {[%clk 0:02:14.7]} 16... Re6 {[%clk 0:01:41.8]}
17. Nd2 {[%clk 0:02:02.3]} 17... Rae8 {[%clk 0:01:37.9]} 18. b3 {[%clk 0:01:42]}
18... c5 {[%clk 0:01:13.5]} 19. dxe5 {[%clk 0:01:36.7]} 19... Nxe5 {[%clk
0:01:14.3]} 20. c4 {[%clk 0:01:35.1]} 20... d4 {[%clk 0:01:09]} 21. exd4 {[%clk
0:01:30.5]} 21... cxd4 {[%clk 0:01:10.9]} 22. Bf4 {[%clk 0:01:17.4]} 22... Qc6
{[%clk 0:00:28.8]} 23. Bxe5 {[%clk 0:01:15.5]} 23... Rxe5 {[%clk 0:00:30.7]} 24.
Qd3 {[%clk 0:01:10.2]} 24... Re2 {[%clk 0:00:23.7]} 25. a3 {[%clk 0:01:07.3]}
25... Qc7 {[%clk 0:00:23.3]} 26. Nf3 {[%clk 0:00:59.5]} 26... Qf4 {[%clk
0:00:20.3]} 27. b4 {[%clk 0:00:56.8]} 27... axb4 {[%clk 0:00:21.1]} 28. axb4
{[%clk 0:00:58.7]} 28... g5 {[%clk 0:00:22.2]} 29. Rfe1 {[%clk 0:00:56.4]} 29...
Rxe1+ {[%clk 0:00:17.8]} 30. Rxe1 {[%clk 0:00:58.3]} 30... Rd8 {[%clk
0:00:17.4]} 31. Re4 {[%clk 0:00:54.6]} 31... Qf5 {[%clk 0:00:13.2]} 32. Re8+
{[%clk 0:00:55.7]} 32... Rxe8 {[%clk 0:00:13.9]} 33. Qxf5 {[%clk 0:00:57.6]}
33... Rd8 {[%clk 0:00:12.9]} 34. Nxg5 {[%clk 0:00:58.7]} 34... f6 {[%clk
0:00:05.4]} 35. Qh7+ {[%clk 0:00:55.6]} 35... Kf8 {[%clk 0:00:05.6]} 36. Ne6+
{[%clk 0:00:56.8]} 1-0

[Event "*** Titled Tuesday Blitz AM"]
[Site "Chess.com"]
[Date "2020.01.07"]
[Round "9"]
[White "lucasmito"]
[Black "manitodeplomo"]
[Result "0-1"]
[WhiteElo "2468"]
[BlackElo "2694"]
[TimeControl "180+2"]
[EndTime "11:04:49 PST"]
[Termination "manitodeplomo won by resignation"]

1. e4 {[%clk 0:03:01.9]} 1... c5 {[%clk 0:02:52]} 2. Nf3 {[%clk 0:02:58.1]} 2...
e6 {[%clk 0:02:51.3]} 3. Nc3 {[%clk 0:02:58.1]} 3... Nc6 {[%clk 0:02:51.4]} 4.
d4 {[%clk 0:02:57.8]} 4... cxd4 {[%clk 0:02:52.7]} 5. Nxd4 {[%clk 0:02:51.4]}
5... Nf6 {[%clk 0:02:53.8]} 6. Be2 {[%clk 0:02:48]} 6... Bb4 {[%clk 0:02:46.1]}
7. O-O {[%clk 0:02:47.2]} 7... Bxc3 {[%clk 0:02:42.3]} 8. bxc3 {[%clk
0:02:47.3]} 8... Nxe4 {[%clk 0:02:42.9]} 9. Bd3 {[%clk 0:02:48.1]} 9... Nf6
{[%clk 0:02:17.4]} 10. Ba3 {[%clk 0:02:48.1]} 10... Nxd4 {[%clk 0:02:03.1]} 11.
cxd4 {[%clk 0:02:43.4]} 11... d6 {[%clk 0:02:04.5]} 12. Qf3 {[%clk 0:02:18.3]}
12... O-O {[%clk 0:01:59.1]} 13. Qg3 {[%clk 0:02:19.4]} 13... Ne8 {[%clk
0:01:55.9]} 14. Rab1 {[%clk 0:02:17.6]} 14... Qc7 {[%clk 0:01:51.8]} 15. Rb5
{[%clk 0:02:14.6]} 15... Bd7 {[%clk 0:01:41.9]} 16. Rh5 {[%clk 0:02:15.5]} 16...
f5 {[%clk 0:01:39]} 17. d5 {[%clk 0:02:07.3]} 17... e5 {[%clk 0:01:34.5]} 18.
Qh3 {[%clk 0:01:48.4]} 18... Nf6 {[%clk 0:01:29.4]} 19. Bxf5 {[%clk 0:01:15.4]}
19... Bxf5 {[%clk 0:01:20.9]} 20. Rxf5 {[%clk 0:01:13.3]} 20... Nxd5 {[%clk
0:01:20.9]} 21. Rxf8+ {[%clk 0:01:10.9]} 21... Rxf8 {[%clk 0:01:22.8]} 22. Qe6+
{[%clk 0:01:10.3]} 22... Qf7 {[%clk 0:01:23.5]} 23. Qxd6 {[%clk 0:01:10.5]}
23... Re8 {[%clk 0:01:20.3]} 24. Re1 {[%clk 0:01:00.2]} 24... e4 {[%clk
0:01:16.9]} 25. Bb2 {[%clk 0:00:49.5]} 25... h6 {[%clk 0:01:13.1]} 26. Qc5
{[%clk 0:00:43.1]} 26... Nf4 {[%clk 0:00:43.9]} 27. Qd6 {[%clk 0:00:27.9]} 27...
Re6 {[%clk 0:00:37.1]} 28. Qd8+ {[%clk 0:00:22.1]} 28... Kh7 {[%clk 0:00:37.1]}
29. Qd4 {[%clk 0:00:20.6]} 29... Rg6 {[%clk 0:00:24.2]} 30. Qxe4 {[%clk
0:00:16.2]} 30... Nh3+ {[%clk 0:00:22.5]} 0-1

[Event "*** Titled Tuesday Blitz AM"]
[Site "Chess.com"]
[Date "2020.01.07"]
[Round "9"]
[White "kinga2008"]
[Black "Mikasinski"]
[Result "0-1"]
[WhiteElo "1849"]
[BlackElo "2301"]
[TimeControl "180+2"]
[EndTime "11:04:50 PST"]
[Termination "Mikasinski won by resignation"]

1. e4 {[%clk 0:03:01.9]} 1... e6 {[%clk 0:03:00.9]} 2. d4 {[%clk 0:03:02.5]}
2... d5 {[%clk 0:03:01.8]} 3. Nc3 {[%clk 0:02:58.8]} 3... Bb4 {[%clk 0:03:00.3]}
4. e5 {[%clk 0:02:52.7]} 4... c5 {[%clk 0:02:58.2]} 5. a3 {[%clk 0:02:37.1]}
5... Bxc3+ {[%clk 0:02:58.9]} 6. bxc3 {[%clk 0:02:34.8]} 6... Ne7 {[%clk
0:03:00.4]} 7. Qg4 {[%clk 0:02:30.4]} 7... Qc7 {[%clk 0:03:00.7]} 8. Qxg7 {[%clk
0:02:17.7]} 8... Rg8 {[%clk 0:03:01]} 9. Qxh7 {[%clk 0:02:13.3]} 9... cxd4
{[%clk 0:03:01.5]} 10. Ne2 {[%clk 0:01:59.2]} 10... dxc3 {[%clk 0:03:01.6]} 11.
f4 {[%clk 0:01:54.1]} 11... Nbc6 {[%clk 0:03:00.3]} 12. Qd3 {[%clk 0:01:36.3]}
12... Nf5 {[%clk 0:02:58.6]} 13. Qxc3 {[%clk 0:01:29.2]} 13... Bd7 {[%clk
0:02:54.8]} 14. Bd2 {[%clk 0:01:08.8]} 14... Rc8 {[%clk 0:02:54.3]} 15. Qd3
{[%clk 0:00:55.4]} 15... Na5 {[%clk 0:02:28]} 16. Bxa5 {[%clk 0:00:39.3]} 16...
Qxa5+ {[%clk 0:02:27.2]} 17. Qd2 {[%clk 0:00:37.7]} 17... Qc5 {[%clk 0:02:23]}
18. Qb4 {[%clk 0:00:17]} 18... Ne3 {[%clk 0:02:15.8]} 19. Qxc5 {[%clk 0:00:15]}
19... Rxc5 {[%clk 0:02:15.1]} 20. Kd2 {[%clk 0:00:14.3]} 20... Nxf1+ {[%clk
0:02:10.6]} 21. Raxf1 {[%clk 0:00:11.6]} 21... Rxg2 {[%clk 0:02:11.9]} 22. Rfg1
{[%clk 0:00:11.6]} 22... Rf2 {[%clk 0:01:57.9]} 23. Ke3 {[%clk 0:00:10.7]} 23...
Rxe2+ {[%clk 0:01:57]} 24. Kxe2 {[%clk 0:00:10.5]} 24... Rxc2+ {[%clk
0:01:57.4]} 25. Kd3 {[%clk 0:00:11.4]} 25... Ra2 {[%clk 0:01:52.7]} 26. Ra1
{[%clk 0:00:09]} 26... Bb5+ {[%clk 0:01:50.6]} 27. Kc3 {[%clk 0:00:08]} 27...
Rf2 {[%clk 0:01:50.6]} 28. h4 {[%clk 0:00:04.9]} 28... Rxf4 {[%clk 0:01:47.7]}
29. h5 {[%clk 0:00:06.2]} 29... d4+ {[%clk 0:01:48.4]} 30. Kd2 {[%clk
0:00:03.5]} 30... Rf2+ {[%clk 0:01:47.7]} 31. Kd1 {[%clk 0:00:03.8]} 31... Bc6
{[%clk 0:01:41.2]} 32. Rg1 {[%clk 0:00:03.3]} 32... Bf3+ {[%clk 0:01:41.2]} 33.
Ke1 {[%clk 0:00:03.5]} 33... Re2+ {[%clk 0:01:42.5]} 34. Kf1 {[%clk 0:00:04.8]}
34... Bxh5 {[%clk 0:01:43.2]} 35. Rg5 {[%clk 0:00:04.1]} 35... Rh2 {[%clk
0:01:29.6]} 36. Re1 {[%clk 0:00:02.4]} 36... Bg6 {[%clk 0:01:22.8]} 37. Kg1
{[%clk 0:00:03.2]} 37... Ra2 {[%clk 0:01:23.2]} 38. Rc1 {[%clk 0:00:03]} 38...
Rxa3 {[%clk 0:01:22.6]} 39. Rc7 {[%clk 0:00:04.4]} 39... d3 {[%clk 0:01:22.4]}
40. Rxb7 {[%clk 0:00:05.1]} 40... d2 {[%clk 0:01:23.3]} 41. Rb8+ {[%clk
0:00:06.1]} 41... Kd7 {[%clk 0:01:23.7]} 0-1

[Event "*** Titled Tuesday Blitz AM"]
[Site "Chess.com"]
[Date "2020.01.07"]
[Round "9"]
[White "chess4ever007"]
[Black "nonscitis"]
[Result "0-1"]
[WhiteElo "2433"]
[BlackElo "2566"]
[TimeControl "180+2"]
[EndTime "11:04:51 PST"]
[Termination "nonscitis won by resignation"]

1. Nf3 {[%clk 0:03:01.9]} 1... c5 {[%clk 0:03:01.3]} 2. c4 {[%clk 0:03:01.8]}
2... g6 {[%clk 0:03:01.2]} 3. e4 {[%clk 0:03:01.9]} 3... Bg7 {[%clk 0:03:02]} 4.
d4 {[%clk 0:03:02.9]} 4... cxd4 {[%clk 0:03:02.6]} 5. Nxd4 {[%clk 0:03:03.5]}
5... Nc6 {[%clk 0:03:04.1]} 6. Be3 {[%clk 0:03:04.2]} 6... Nf6 {[%clk
0:03:03.6]} 7. Nc3 {[%clk 0:03:04.4]} 7... O-O {[%clk 0:03:04.3]} 8. f3 {[%clk
0:03:02.3]} 8... d6 {[%clk 0:03:05]} 9. Nc2 {[%clk 0:03:02.8]} 9... a5 {[%clk
0:03:02.8]} 10. Be2 {[%clk 0:02:54.5]} 10... a4 {[%clk 0:03:03.3]} 11. O-O
{[%clk 0:02:48.3]} 11... Nd7 {[%clk 0:03:03.4]} 12. Na3 {[%clk 0:02:45.2]} 12...
Qa5 {[%clk 0:02:56.9]} 13. Qd2 {[%clk 0:02:21.6]} 13... b6 {[%clk 0:02:54.5]}
14. Rfd1 {[%clk 0:02:12.1]} 14... Ba6 {[%clk 0:02:51.2]} 15. Rac1 {[%clk
0:01:57]} 15... Rfc8 {[%clk 0:02:49.5]} 16. Nd5 {[%clk 0:01:28.9]} 16... Qxd2
{[%clk 0:02:47.9]} 17. Rxd2 {[%clk 0:01:29.2]} 17... Rab8 {[%clk 0:02:48]} 18.
Nc3 {[%clk 0:01:07.6]} 18... Nc5 {[%clk 0:02:41.2]} 19. Bxc5 {[%clk 0:01:07.7]}
19... bxc5 {[%clk 0:02:43.1]} 20. Nxa4 {[%clk 0:01:08.7]} 20... Nd4 {[%clk
0:02:38]} 21. b3 {[%clk 0:01:06.9]} 21... Bh6 {[%clk 0:02:36]} 22. Rcd1 {[%clk
0:01:07.8]} 22... Bxd2 {[%clk 0:02:34.9]} 23. Rxd2 {[%clk 0:01:08.8]} 23... Bb7
{[%clk 0:02:33.3]} 24. Nb5 {[%clk 0:01:01.5]} 24... Bc6 {[%clk 0:02:28.1]} 25.
Nxd4 {[%clk 0:00:56.8]} 25... cxd4 {[%clk 0:02:28.6]} 26. Nb2 {[%clk 0:00:57.8]}
26... e5 {[%clk 0:02:26.5]} 27. Bd3 {[%clk 0:00:58.6]} 27... Ra8 {[%clk
0:02:20.8]} 28. Bb1 {[%clk 0:00:59.4]} 28... Rcb8 {[%clk 0:02:20.2]} 29. Nd3
{[%clk 0:00:57.9]} 29... Kf8 {[%clk 0:02:17.1]} 30. Kf2 {[%clk 0:00:51.3]} 30...
Ke7 {[%clk 0:02:17.9]} 31. Ke1 {[%clk 0:00:51.7]} 31... f5 {[%clk 0:02:18.2]}
32. Nf2 {[%clk 0:00:50.9]} 32... fxe4 {[%clk 0:02:14.8]} 33. Nxe4 {[%clk
0:00:47.2]} 33... d5 {[%clk 0:02:12.3]} 34. cxd5 {[%clk 0:00:46.6]} 34... Bxd5
{[%clk 0:02:14.2]} 35. Nc5 {[%clk 0:00:47.9]} 35... Rc8 {[%clk 0:02:12.2]} 36.
Nd3 {[%clk 0:00:48.9]} 36... Kf6 {[%clk 0:02:12.4]} 37. Re2 {[%clk 0:00:49.8]}
37... Rc3 {[%clk 0:02:00.8]} 38. Kd2 {[%clk 0:00:45.9]} 38... Re8 {[%clk
0:01:54.6]} 39. Nf2 {[%clk 0:00:45.8]} 39... h5 {[%clk 0:01:53]} 40. Be4 {[%clk
0:00:46.2]} 40... Be6 {[%clk 0:01:47.4]} 41. Bb1 {[%clk 0:00:41.5]} 41... Bf5
{[%clk 0:01:48.2]} 42. Be4 {[%clk 0:00:27.2]} 42... Rec8 {[%clk 0:01:41.9]} 43.
Nd1 {[%clk 0:00:23.9]} 43... Bxe4 {[%clk 0:01:37.3]} 44. fxe4 {[%clk 0:00:19.5]}
44... Rc2+ {[%clk 0:01:38.1]} 45. Kd3 {[%clk 0:00:20.6]} 45... Rxe2 {[%clk
0:01:38]} 46. Kxe2 {[%clk 0:00:21.5]} 46... Rc2+ {[%clk 0:01:39.2]} 47. Kf3
{[%clk 0:00:21.5]} 47... Rxa2 {[%clk 0:01:39.5]} 48. Nf2 {[%clk 0:00:22.6]}
48... Ra3 {[%clk 0:01:39.4]} 0-1